lending/lending_fUSD_20240507
["ID","MTS","AMOUNT","RATE_DAILY","PERIOD"]
[326582980,1715116302713,-2274.89,0.00022191,2]
[326582981,1715116302723,-547.69,0.00022191,2]
[326582982,1715116302734,-500.0,0.00022191,2]
[326582983,1715116302745,-1726.63,0.00022191,2]
[326582984,1715116302756,-195.94154451,0.00022191,2]
[326582985,1715116302766,-841.06,0.00022191,2]
[326582986,1715116302777,-500.0,0.00022191,2]
[326582987,1715116302787,-1516.8,0.00022191,2]
[326582988,1715116302798,-1393.26,0.00022191,2]
[326582989,1715116302809,-1128.38,0.00022191,2]
[326582990,1715116302959,-730.82,0.00022191,2]
[326582991,1715116302972,-335.15794038,0.00022191,2]
[326582992,1715116302983,-542.28400391,0.00022191,2]
[326582993,1715116302994,-702.7,0.00022191,2]
[326582994,1715116303006,-582.78,0.00022191,2]
[326582995,1715116303018,-500.0,0.00022191,2]
[326582996,1715116303029,-500.0,0.00022191,2]
[326582997,1715116303042,-7271.32,0.00022191,2]
[326582998,1715116303053,-500.0,0.00022191,2]
[326582999,1715116303065,-846.66,0.00022191,2]
[326583000,1715116303076,-959.96,0.00022191,2]
[326583001,1715116303087,-500.0,0.00022191,2]
[326583002,1715116303098,-928.0,0.00022191,2]
[326583003,1715116303109,-1314.25,0.00022191,2]
[326583004,1715116303120,-535.14,0.00022191,2]
[326583005,1715116303132,-698.89,0.00022191,2]
[326583006,1715116303143,-500.0,0.00022191,2]
[326583007,1715116303154,-681.48,0.00022191,2]
[326583008,1715116303165,-570.32,0.00022191,2]
[326583009,1715116303176,-500.0,0.00022191,2]
[326583010,1715116303186,-529.68,0.00022191,2]
[326583011,1715116303196,-5182.99,0.00022191,2]
[326583012,1715116303208,-402.77570861,0.00022191,2]
[326583013,1715116303220,-1427.16,0.00022191,2]
[326583014,1715116303231,-500.0,0.00022191,2]
[326583015,1715116303241,-570.82,0.00022191,2]
[326583016,1715116303251,-500.0,0.00022191,2]
[326583017,1715116303261,-500.0,0.00022191,2]
[326583018,1715116303272,-696.71,0.00022191,2]
[326583019,1715116303283,-640.06,0.00022191,2]
[326583020,1715116303293,-1097.83,0.00022191,2]
[326583021,1715116303303,-766.14,0.00022191,2]
[326583022,1715116303313,-500.0,0.00022191,2]
[326583023,1715116303322,-590.11,0.00022191,2]
[326583024,1715116303332,-500.0,0.00022191,2]
[326583025,1715116303342,-500.0,0.00022191,2]
[326583026,1715116303353,-1381.85,0.00022191,2]
[326583027,1715116303364,-500.0,0.00022191,2]
[326583028,1715116303375,-500.0,0.00022191,2]
[326583029,1715116303388,-500.0,0.00022191,2]
[326583030,1715116303398,-500.0,0.00022191,2]
[326583031,1715116303408,-500.0,0.00022191,2]
[326583032,1715116303419,-1251.23,0.00022191,2]
[326583033,1715116303430,-640.61,0.00022191,2]
[326583034,1715116303440,-500.0,0.00022191,2]
[326583035,1715116303451,-151.35100351,0.0002234,2]
[326583036,1715116303462,-205.16402111,0.00022356,10]
[326583037,1715116303471,-419.95,0.00022359,2]
[326583038,1715116303481,-163.16,0.00022359,2]
[326583039,1715116303491,-150.0,0.00022359,2]
[326583040,1715116303501,-523.05,0.00022359,2]
[326583041,1715116303511,-473.9,0.00022397,5]
[326583042,1715116303521,-1000.0,0.000224,2]
[326583043,1715116303533,-523.05,0.00022406,2]
[326583044,1715116303543,-283.26,0.00022465,2]
[326583045,1715116303553,-500.0,0.00022465,2]
[326583046,1715116303564,-500.0,0.00022465,2]
[326583047,1715116303575,-500.0,0.00022465,2]
[326583048,1715116303586,-500.0,0.00022465,2]
[326583049,1715116303597,-500.0,0.00022465,2]
[326583050,1715116303608,-500.0,0.00022465,2]
[326583051,1715116303618,-500.0,0.00022465,2]
[326583052,1715116303628,-500.0,0.00022465,2]
[326583053,1715116303638,-632.47,0.00022465,2]
[326583054,1715116303649,-667.08,0.00022465,2]
[326583055,1715116303660,-500.0,0.00022465,2]
[326583056,1715116303670,-500.0,0.00022465,2]
[326583057,1715116303681,-531.78,0.00022465,2]
[326583058,1715116303692,-500.0,0.00022465,2]
[326583059,1715116303702,-500.0,0.00022465,2]
[326583060,1715116303711,-243.61,0.00022465,2]
[326583061,1715116303722,-541.6,0.00022465,2]
[326583062,1715116303731,-500.0,0.00022465,2]
[326583063,1715116303742,-500.0,0.00022465,2]
[326583064,1715116303752,-500.0,0.00022465,2]
[326583065,1715116303764,-500.0,0.00022465,2]
[326583066,1715116303775,-500.0,0.00022465,2]
[326583067,1715116303785,-500.0,0.00022465,2]
[326583068,1715116303795,-500.0,0.00022465,2]
[326583069,1715116303807,-500.0,0.00022465,2]
[326583070,1715116303818,-500.0,0.00022465,2]
[326583071,1715116303829,-500.0,0.00022465,2]
[326583072,1715116303840,-500.0,0.00022465,2]
[326583073,1715116303856,-500.0,0.00022465,2]
[326583074,1715116303866,-500.0,0.00022465,2]
[326583075,1715116303877,-500.0,0.00022465,2]
[326583076,1715116303889,-500.0,0.00022465,2]
[326583077,1715116303900,-500.0,0.00022465,2]
[326583078,1715116303924,-902.68,0.00022465,2]
[326583079,1715116303943,-257.08,0.00022465,2]
[326583080,1715116303964,-607.38004874,0.00022465,2]
[326583081,1715116303984,-500.0,0.00022465,2]
[326583082,1715116304007,-521.62,0.00022465,2]
[326583083,1715116304025,-441.76,0.00022465,2]
[326583084,1715116304043,-500.0,0.00022465,2]
[326583085,1715116304059,-500.0,0.00022465,2]
[326583086,1715116304079,-500.0,0.00022465,2]
[326583087,1715116304100,-276.76,0.00022465,2]
[326583088,1715116304119,-551.88,0.00022465,2]
[326583089,1715116304132,-500.0,0.00022465,2]
[326583090,1715116304152,-500.0,0.00022465,2]
[326583091,1715116304167,-500.0,0.00022465,2]
[326583092,1715116304184,-500.0,0.00022465,2]
[326583093,1715116304199,-283.08904942,0.00022465,2]
[326583094,1715116304215,-500.0,0.00022465,2]
[326583095,1715116304231,-500.0,0.00022465,2]
[326583096,1715116304247,-500.0,0.00022465,2]
[326583097,1715116304263,-232.57,0.00022465,2]
[326583098,1715116304279,-500.0,0.00022465,2]
[326583099,1715116304295,-500.0,0.00022465,2]
[326583100,1715116304311,-500.0,0.00022465,2]
[326583101,1715116304327,-500.0,0.00022465,2]
[326583102,1715116304343,-500.0,0.00022465,2]
[326583103,1715116304360,-500.0,0.00022465,2]
[326583104,1715116304375,-500.0,0.00022465,2]
[326583105,1715116304393,-500.0,0.00022465,2]
[326583106,1715116304408,-500.0,0.00022465,2]
[326583107,1715116304423,-698.76,0.00022465,2]
[326583108,1715116304438,-500.0,0.00022465,2]
[326583109,1715116304454,-5824.25,0.00022465,2]
[326583110,1715116304470,-500.0,0.00022465,2]
[326583111,1715116304486,-601.03,0.00022465,2]
[326583112,1715116304496,-500.0,0.00022465,2]
[326583113,1715116304507,-520.98,0.00022465,2]
[326583114,1715116304518,-664.01,0.00022465,2]
[326583115,1715116304528,-500.0,0.00022465,2]
[326583116,1715116304538,-500.0,0.00022465,2]
[326583117,1715116304548,-576.43139142,0.00022465,2]
[326583118,1715116304559,-701.0,0.00022465,2]
[326583119,1715116304569,-681.84,0.00022465,2]
[326583120,1715116304579,-500.0,0.00022465,2]
[326583121,1715116304590,-625.31,0.00022465,2]
[326583122,1715116304600,-403.96546081,0.00022465,2]
[326583123,1715116304610,-500.0,0.00022465,2]
[326583124,1715116304620,-500.0,0.00022465,2]
[326583125,1715116304631,-180.0691425,0.00022465,2]
[326583126,1715116304642,-500.0,0.00022465,2]
[326583127,1715116304653,-153.68,0.00022465,2]
[326583128,1715116304664,-1240.89,0.00022465,2]
[326583129,1715116304676,-500.0,0.00022465,2]
[326583130,1715116304686,-644.86,0.00022465,2]
[326583131,1715116304696,-5042.93,0.00022465,2]
[326583132,1715116304708,-633.32,0.00022465,2]
[326583133,1715116304719,-2029.86,0.00022465,2]
[326583134,1715116304730,-596.24,0.00022465,2]
[326583135,1715116304741,-684.17,0.00022465,2]
[326583136,1715116304752,-1243.79,0.00022465,2]
[326583137,1715116304762,-500.0,0.00022465,2]
[326583138,1715116304775,-2732.29,0.00022465,2]
[326583139,1715116304787,-658.76,0.00022465,2]
[326583140,1715116304798,-859.21,0.00022465,2]
[326583141,1715116304809,-176.0880931,0.00022465,2]
[326583142,1715116304820,-558.57,0.00022465,2]
[326583143,1715116304831,-2017.79,0.00022465,2]
[326583144,1715116304843,-664.22,0.00022465,2]
[326583145,1715116304857,-500.0,0.00022465,2]
[326583146,1715116304869,-500.0,0.00022465,2]
[326583147,1715116304879,-500.0,0.00022465,2]
[326583148,1715116304891,-711.2,0.00022465,2]
[326583149,1715116304901,-3691.57,0.00022465,2]
[326583150,1715116304912,-693.02,0.00022465,2]
[326583151,1715116304924,-644.14,0.00022465,2]
[326583152,1715116304936,-1359.85,0.00022465,2]
[326583153,1715116304946,-500.0,0.00022465,2]
[326583154,1715116304958,-692.31,0.00022465,2]
[326583155,1715116304968,-547.78,0.00022465,2]
[326583156,1715116304979,-3284.08,0.00022465,2]
[326583157,1715116304989,-923.1,0.00022465,2]
[326583158,1715116304999,-565.83,0.00022465,2]
[326583159,1715116305010,-564.63,0.00022465,2]
[326583160,1715116305021,-500.0,0.00022465,2]
[326583161,1715116305031,-500.0,0.00022465,2]
[326583162,1715116305043,-1065.91,0.00022465,2]
[326583163,1715116305053,-790.45,0.00022465,2]
[326583164,1715116305454,-1276.41,0.00022465,2]
[326583165,1715116305474,-986.6,0.00022465,2]
[326583166,1715116305491,-500.0,0.00022465,2]
[326583167,1715116305506,-500.0,0.00022465,2]
[326583168,1715116305518,-500.0,0.00022465,2]
[326583169,1715116305528,-500.0,0.00022465,2]
[326583170,1715116305538,-500.0,0.00022465,2]
[326583171,1715116305550,-541.48,0.00022465,2]
[326583172,1715116305561,-607.24,0.00022465,2]
[326583173,1715116305574,-500.0,0.00022465,2]
[326583174,1715116305584,-1207.16,0.00022465,2]
[326583175,1715116305595,-533.07,0.00022465,2]
[326583176,1715116305606,-500.0,0.00022465,2]
[326583177,1715116305616,-500.0,0.00022465,2]
[326583178,1715116305627,-617.79,0.00022465,2]
[326583179,1715116305638,-847.88,0.00022465,2]
[326583180,1715116305649,-736.73,0.00022465,2]
[326583181,1715116305659,-500.0,0.00022465,2]
[326583182,1715116305669,-568.79,0.00022465,2]
[326583183,1715116305678,-500.0,0.00022465,2]
[326583184,1715116305688,-996.11,0.00022465,2]
[326583185,1715116305699,-939.79,0.00022465,2]
[326583186,1715116305709,-2274.89,0.00022465,2]
[326583187,1715116305719,-547.69,0.00022465,2]
[326583188,1715116305729,-500.0,0.00022465,2]
[326583189,1715116305739,-1726.63,0.00022465,2]
[326583190,1715116305750,-841.06,0.00022465,2]
[326583191,1715116305760,-500.0,0.00022465,2]
[326583192,1715116305771,-1516.8,0.00022465,2]
[326583193,1715116305782,-1393.26,0.00022465,2]
[326583194,1715116305793,-1128.38,0.00022465,2]
[326583195,1715116305803,-730.82,0.00022465,2]
[326583196,1715116305814,-702.7,0.00022465,2]
[326583197,1715116305824,-582.78,0.00022465,2]
[326583198,1715116305835,-500.0,0.00022465,2]
[326583199,1715116305849,-500.0,0.00022465,2]
[326583200,1715116305860,-7271.32,0.00022465,2]
[326583201,1715116305871,-500.0,0.00022465,2]
[326583202,1715116305883,-846.66,0.00022465,2]
[326583203,1715116305894,-959.96,0.00022465,2]
[326583204,1715116305905,-928.0,0.00022465,2]
[326583205,1715116305917,-281.03006824,0.00022465,2]
[326583206,1715116305927,-1314.25,0.00022465,2]
[326583207,1715116305939,-535.14,0.00022465,2]
[326583208,1715116305950,-698.89,0.00022465,2]
[326583209,1715116305961,-500.0,0.00022465,2]
[326583210,1715116305971,-681.48,0.00022465,2]
[326583211,1715116305986,-570.32,0.00022465,2]
[326583212,1715116305998,-500.0,0.00022465,2]
[326583213,1715116306009,-529.68,0.00022465,2]
[326583214,1715116306020,-5182.99,0.00022465,2]
[326583215,1715116306032,-1427.16,0.00022465,2]
[326583216,1715116306042,-500.0,0.00022465,2]
[326583217,1715116306053,-570.82,0.00022465,2]
[326583218,1715116306062,-500.0,0.00022465,2]
[326583219,1715116306073,-268.49640772,0.00022465,2]
[326583220,1715116306083,-696.71,0.00022465,2]
[326583221,1715116306092,-640.06,0.00022465,2]
[326583222,1715116306103,-1097.83,0.00022465,2]
[326583223,1715116306113,-766.14,0.00022465,2]
[326583224,1715116306123,-500.0,0.00022465,2]
[326583225,1715116306132,-590.11,0.00022465,2]
[326583226,1715116306143,-500.0,0.00022465,2]
[326583227,1715116306154,-500.0,0.00022465,2]
[326583228,1715116306164,-1381.85,0.00022465,2]
[326583229,1715116306175,-500.0,0.00022465,2]
[326583230,1715116306185,-500.0,0.00022465,2]
[326583231,1715116306196,-500.0,0.00022465,2]
[326583232,1715116306207,-500.0,0.00022465,2]
[326583233,1715116306217,-500.0,0.00022465,2]
[326583234,1715116306228,-1251.23,0.00022465,2]
[326583235,1715116306239,-640.61,0.00022465,2]
[326583236,1715116306250,-500.0,0.00022465,2]
[326583237,1715116306260,-205.16402111,0.00022466,10]
[326583238,1715116306271,-150.0,0.000225,3]
[326583239,1715116306281,-205.16402111,0.00022548,10]
[326583240,1715116306291,-1000.0,0.000226,2]
[326583241,1715116306301,-205.16402111,0.0002263,10]
[326583242,1715116306311,-175.0,0.0002264,11]
[326583243,1715116306322,-500.0,0.00022739,2]
[326583244,1715116306333,-382.36460745,0.00022739,2]
[326583245,1715116306343,-500.0,0.00022739,2]
[326583246,1715116306354,-500.0,0.00022739,2]
[326583247,1715116306364,-500.0,0.00022739,2]
[326583248,1715116306375,-500.0,0.00022739,2]
[326583249,1715116306387,-500.0,0.00022739,2]
[326583250,1715116306397,-500.0,0.00022739,2]
[326583251,1715116306406,-632.47,0.00022739,2]
[326583252,1715116306416,-667.08,0.00022739,2]
[326583253,1715116306426,-500.0,0.00022739,2]
[326583254,1715116306437,-500.0,0.00022739,2]
[326583255,1715116306447,-531.78,0.00022739,2]
[326583256,1715116306458,-412.69312836,0.00022739,2]
[326583257,1715116306468,-500.0,0.00022739,2]
[326583258,1715116306479,-541.6,0.00022739,2]
[326583259,1715116306490,-500.0,0.00022739,2]
[326583260,1715116306500,-501.91902923,0.00022739,2]
[326583261,1715116306511,-300.66600562,0.00022739,2]
[326583262,1715116306521,-500.0,0.00022739,2]
[326583263,1715116306532,-561.79581951,0.00022739,2]
[326583264,1715116306543,-366.94124595,0.00022739,2]
[326583265,1715116306554,-500.0,0.00022739,2]
[326583266,1715116306564,-500.0,0.00022739,2]
[326583267,1715116306575,-500.0,0.00022739,2]
[326583268,1715116306585,-500.0,0.00022739,2]
[326583269,1715116306596,-478.58115276,0.00022739,2]
[326583270,1715116306606,-500.0,0.00022739,2]
[326583271,1715116306616,-198.74,0.00022739,2]
[326583272,1715116306627,-500.0,0.00022739,2]
[326583273,1715116306637,-500.0,0.00022739,2]
[326583274,1715116306648,-500.0,0.00022739,2]
[326583275,1715116306659,-902.68,0.00022739,2]
[326583276,1715116306670,-500.0,0.00022739,2]
[326583277,1715116306680,-521.62,0.00022739,2]
[326583278,1715116306690,-500.0,0.00022739,2]
[326583279,1715116306701,-647.38188719,0.00022739,2]
[326583280,1715116306712,-500.0,0.00022739,2]
[326583281,1715116306722,-551.88,0.00022739,2]
[326583282,1715116306732,-500.0,0.00022739,2]
[326583283,1715116306743,-500.0,0.00022739,2]
[326583284,1715116306753,-415.55,0.00022739,2]
[326583285,1715116306763,-500.0,0.00022739,2]
[326583286,1715116306773,-500.0,0.00022739,2]
[326583287,1715116306783,-500.0,0.00022739,2]
[326583288,1715116306793,-500.0,0.00022739,2]
[326583289,1715116306803,-232.57,0.00022739,2]
[326583290,1715116306814,-500.0,0.00022739,2]
[326583291,1715116306824,-500.0,0.00022739,2]
[326583292,1715116306835,-500.0,0.00022739,2]
[326583293,1715116306849,-500.0,0.00022739,2]
[326583294,1715116306859,-500.0,0.00022739,2]
[326583295,1715116306870,-500.0,0.00022739,2]
[326583296,1715116306880,-534.15041587,0.00022739,2]
[326583297,1715116306891,-500.0,0.00022739,2]
[326583298,1715116306901,-500.0,0.00022739,2]
[326583299,1715116306911,-698.76,0.00022739,2]
[326583300,1715116306921,-500.0,0.00022739,2]
[326583301,1715116306933,-5824.25,0.00022739,2]
[326583302,1715116306944,-500.0,0.00022739,2]
[326583303,1715116306955,-601.03,0.00022739,2]
[326583304,1715116306966,-500.0,0.00022739,2]
[326583305,1715116306977,-520.98,0.00022739,2]
[326583306,1715116306988,-664.01,0.00022739,2]
[326583307,1715116306999,-500.0,0.00022739,2]
[326583308,1715116307010,-500.0,0.00022739,2]
[326583309,1715116307021,-701.0,0.00022739,2]
[326583310,1715116307031,-681.84,0.00022739,2]
[326583311,1715116307042,-500.0,0.00022739,2]
[326583312,1715116307053,-625.31,0.00022739,2]
[326583313,1715116307063,-500.0,0.00022739,2]
[326583314,1715116307074,-500.0,0.00022739,2]
[326583315,1715116307084,-500.0,0.00022739,2]
[326583316,1715116307095,-1240.89,0.00022739,2]
[326583317,1715116307106,-500.0,0.00022739,2]
[326583318,1715116307117,-644.86,0.00022739,2]
[326583319,1715116307127,-5042.93,0.00022739,2]
[326583320,1715116307139,-633.32,0.00022739,2]
[326583321,1715116307150,-2029.86,0.00022739,2]
[326583322,1715116307161,-596.24,0.00022739,2]
[326583323,1715116307172,-684.17,0.00022739,2]
[326583324,1715116307184,-1243.79,0.00022739,2]
[326583325,1715116307194,-500.0,0.00022739,2]
[326583326,1715116307206,-2732.29,0.00022739,2]
[326583327,1715116307217,-658.76,0.00022739,2]
[326583328,1715116307230,-859.21,0.00022739,2]
[326583329,1715116307240,-558.57,0.00022739,2]
[326583330,1715116307250,-2017.79,0.00022739,2]
[326583331,1715116307262,-664.22,0.00022739,2]
[326583332,1715116307273,-247.45645748,0.00022739,2]
[326583333,1715116307284,-500.0,0.00022739,2]
[326583334,1715116307295,-500.0,0.00022739,2]
[326583335,1715116307307,-711.2,0.00022739,2]
[326583336,1715116307320,-3691.57,0.00022739,2]
[326583337,1715116307331,-693.02,0.00022739,2]
[326583338,1715116307343,-644.14,0.00022739,2]
[326583339,1715116307354,-1359.85,0.00022739,2]
[326583340,1715116307365,-500.0,0.00022739,2]
[326583341,1715116307376,-692.31,0.00022739,2]
[326583342,1715116307390,-547.78,0.00022739,2]
[326583343,1715116307400,-3284.08,0.00022739,2]
[326583344,1715116307411,-923.1,0.00022739,2]
[326583345,1715116307421,-565.83,0.00022739,2]
[326583346,1715116307432,-564.63,0.00022739,2]
[326583347,1715116307443,-500.0,0.00022739,2]
[326583348,1715116307454,-500.0,0.00022739,2]
[326583349,1715116307466,-1065.91,0.00022739,2]
[326583350,1715116307477,-790.45,0.00022739,2]
[326583351,1715116307487,-1276.41,0.00022739,2]
[326583352,1715116307497,-986.6,0.00022739,2]
[326583353,1715116307508,-500.0,0.00022739,2]
[326583354,1715116307519,-500.0,0.00022739,2]
[326583355,1715116307530,-500.0,0.00022739,2]
[326583356,1715116307541,-500.0,0.00022739,2]
[326583357,1715116307553,-500.0,0.00022739,2]
[326583358,1715116307564,-541.48,0.00022739,2]
[326583359,1715116307575,-607.24,0.00022739,2]
[326583360,1715116307586,-500.0,0.00022739,2]
[326583361,1715116307597,-1207.16,0.00022739,2]
[326583362,1715116307609,-533.07,0.00022739,2]
[326583363,1715116307619,-500.0,0.00022739,2]
[326583364,1715116307631,-617.79,0.00022739,2]
[326583365,1715116307641,-500.0,0.00022739,2]
[326583366,1715116307653,-847.88,0.00022739,2]
[326583367,1715116307663,-736.73,0.00022739,2]
[326583368,1715116307674,-500.0,0.00022739,2]
[326583369,1715116307684,-568.79,0.00022739,2]
[326583370,1715116307694,-500.0,0.00022739,2]
[326583371,1715116307704,-996.11,0.00022739,2]
[326583372,1715116307714,-939.79,0.00022739,2]
[326583373,1715116307724,-2274.89,0.00022739,2]
[326583374,1715116307734,-547.69,0.00022739,2]
[326583375,1715116307744,-500.0,0.00022739,2]
[326583376,1715116307755,-1726.63,0.00022739,2]
[326583377,1715116307765,-841.06,0.00022739,2]
[326583378,1715116307777,-500.0,0.00022739,2]
[326583379,1715116307788,-1516.8,0.00022739,2]
[326583380,1715116307799,-1393.26,0.00022739,2]
[326583381,1715116307810,-1128.38,0.00022739,2]
[326583382,1715116307822,-730.82,0.00022739,2]
[326583383,1715116307832,-702.7,0.00022739,2]
[326583384,1715116307846,-582.78,0.00022739,2]
[326583385,1715116307857,-500.0,0.00022739,2]
[326583386,1715116307868,-500.0,0.00022739,2]
[326583387,1715116307879,-7271.32,0.00022739,2]
[326583388,1715116307891,-500.0,0.00022739,2]
[326583389,1715116307902,-846.66,0.00022739,2]
[326583390,1715116307913,-959.96,0.00022739,2]
[326583391,1715116307926,-928.0,0.00022739,2]
[326583392,1715116307937,-1314.25,0.00022739,2]
[326583393,1715116307947,-535.14,0.00022739,2]
[326583394,1715116307959,-698.89,0.00022739,2]
[326583395,1715116307970,-500.0,0.00022739,2]
[326583396,1715116307981,-681.48,0.00022739,2]
[326583397,1715116307991,-570.32,0.00022739,2]
[326583398,1715116308002,-500.0,0.00022739,2]
[326583399,1715116308012,-529.68,0.00022739,2]
[326583400,1715116308023,-5182.99,0.00022739,2]
[326583401,1715116308034,-1427.16,0.00022739,2]
[326583402,1715116308044,-500.0,0.00022739,2]
[326583403,1715116308054,-570.82,0.00022739,2]
[326583404,1715116308064,-500.0,0.00022739,2]
[326583405,1715116308076,-696.71,0.00022739,2]
[326583406,1715116308085,-640.06,0.00022739,2]
[326583407,1715116308097,-1097.83,0.00022739,2]
[326583408,1715116308107,-766.14,0.00022739,2]
[326583409,1715116308117,-500.0,0.00022739,2]
[326583410,1715116308127,-590.11,0.00022739,2]
[326583411,1715116308138,-500.0,0.00022739,2]
[326583412,1715116308149,-500.0,0.00022739,2]
[326583413,1715116308160,-1381.85,0.00022739,2]
[326583414,1715116308171,-500.0,0.00022739,2]
[326583415,1715116308182,-500.0,0.00022739,2]
[326583416,1715116308193,-500.0,0.00022739,2]
[326583417,1715116308204,-500.0,0.00022739,2]
[326583418,1715116308214,-500.0,0.00022739,2]
[326583419,1715116308225,-1251.23,0.00022739,2]
[326583420,1715116308236,-640.61,0.00022739,2]
[326583421,1715116308247,-500.0,0.00022739,2]
[326583422,1715116308258,-205.16402111,0.0002274,10]
[326583423,1715116308268,-500.0,0.00022759,2]
[326583424,1715116308279,-500.0,0.00022768,2]
[326583425,1715116308289,-153.56806668,0.00022773,2]
[326583426,1715116308300,-500.0,0.00022777,2]
[326583427,1715116308310,-500.0,0.00022786,2]
[326583428,1715116308321,-500.0,0.00022794,2]
[326583429,1715116308332,-200.0,0.00022799,2]
[326583430,1715116308342,-1000.0,0.00022799,2]
[326583431,1715116308353,-500.0,0.00022799,2]
[326583432,1715116308363,-200.0,0.00022799,2]
[326583433,1715116308375,-1000.0,0.000228,2]
[326583434,1715116308388,-500.0,0.00022803,2]
[326583435,1715116308398,-500.0,0.00022812,2]
[326583436,1715116308408,-500.0,0.00022821,2]
[326583437,1715116308419,-205.16402111,0.00022822,10]
[326583438,1715116308429,-500.0,0.0002283,2]
[326583439,1715116308440,-500.0,0.00022838,2]
[326583440,1715116308451,-500.0,0.00022847,2]
[326583441,1715116308460,-500.0,0.00022856,2]
[326583442,1715116308470,-500.0,0.00022865,2]
[326583443,1715116308480,-500.0,0.00022874,2]
[326583444,1715116308490,-500.0,0.00022882,2]
[326583445,1715116308500,-500.0,0.00022891,2]
[326583446,1715116308510,-500.0,0.000229,2]
[326583447,1715116308519,-152.71864665,0.000229,2]
[326583448,1715116308529,-3215.07194604,0.000229,2]
[326583449,1715116308540,-748.83987816,0.000229,2]
[326583450,1715116308551,-2661.17536,0.000229,2]
[326583451,1715116308562,-300.0,0.000229,8]
[326583452,1715116308575,-473.9,0.0002291,5]
[326583453,1715116308586,-205.16402111,0.00022932,10]
[326583454,1715116308597,-154.20279984,0.00022937,2]
[326583455,1715116308607,-595.46,0.00022977,15]
[326583456,1715116308619,-334.0,0.00022977,15]
[326583457,1715116308629,-207.66695698,0.00022983,2]
[326583458,1715116308640,-5858.31717383,0.00022983,2]
[326583459,1715116308650,-595.0,0.00022987,15]
[326583460,1715116308662,-334.0,0.00022987,15]
[326583461,1715116308674,-1250.7622008,0.00022997,2]
[326583462,1715116308685,-1971.1271488,0.00022997,2]
[326583463,1715116308696,-863621.13608349,0.00023,4]
[326583464,1715116308833,-1027549.55799199,0.00023,4]
[326583465,1715116308928,-748.51060556,0.00019452,2]
[326583466,1715116308940,-1187.29489231,0.00019452,2]
[326583467,1715116308953,-203.94450213,0.00019452,2]
[326583468,1715116308964,-398.63983887,0.00019726,2]
[326583469,1715116308977,-387.287,0.00019726,2]
[326583470,1715116308990,-320.2,0.00019726,2]
[326583471,1715116309217,-544.85942525,9.23e-05,2]
[326583472,1715116309626,-601.93717688,9.229e-05,2]
[326583473,1715116309638,-1581.20385517,9.229e-05,2]
[326583474,1715116309649,-5260.49029437,9.23e-05,2]
[326583475,1715116309659,-499.99,0.00010416,2]
[326583476,1715116309670,-176.30095401,0.00011912,2]
[326583477,1715116309681,-176.30095401,0.0001289,2]
[326583478,1715116309692,-2000.0,0.000129,2]
[326583479,1715116309702,-2000.0,0.00013029,2]